bitfinex-derivatives/quotes_ETHF0:USTF0_20260204
["timestamp","ask_amount","ask_price","bid_price","bid_amount"]
[1770207728855,0.00228245,2262.4,2261.4,0.17008533]
[1770207729756,0.00228245,2262.3,2261.4,0.17008533]
[1770207730553,39.62360799,2262.4,2261.4,0.17008533]
[1770207730755,0.00488302,2262.4,2261.3,0.22142]
[1770207730960,0.00488302,2262.0,2261.1,0.16803056]
[1770207733257,0.00694445,2261.9,2261.1,0.16803056]
[1770207733562,39.63055244,2261.8,2260.8,0.16803056]
[1770207733765,0.00694445,2261.7,2260.8,0.16803056]
[1770207734165,39.62360799,2261.8,2260.8,0.16803056]
[1770207734364,39.63055172,2261.9,2260.8,0.16803056]
[1770207735456,5.50327405,2262.0,2260.8,0.16803056]
[1770207735457,0.22136,2262.0,2260.8,0.16803056]
[1770207735864,0.22764957,2262.0,2260.8,0.16803056]
[1770207740370,39.62360799,2262.1,2260.8,0.16803056]
[1770207741671,39.62360799,2262.1,2261.0,0.16598076]
[1770207741863,39.62360799,2262.3,2261.1,0.16598076]
[1770207742062,39.85036227,2262.4,2261.1,0.16598076]
[1770207743268,39.62360799,2262.3,2261.1,0.16598076]
[1770207743469,39.62360799,2262.3,2261.2,0.16660657]
[1770207744971,39.62759528,2262.3,2261.2,0.16660657]
[1770207745172,39.62360799,2262.2,2261.2,0.16660657]
[1770207746371,39.62759528,2262.3,2261.2,0.16660657]
[1770207746570,39.62360799,2262.2,2261.2,0.16660657]
[1770207746771,39.62759528,2262.3,2261.2,0.16660657]
[1770207747168,0.00398729,2262.3,2261.3,0.16638879]
[1770207750678,39.84492799,2262.4,2261.3,0.16638879]
[1770207750870,39.62360799,2262.4,2261.3,0.16638879]
[1770207751580,39.62824879,2262.4,2261.3,0.16638879]
[1770207752380,0.0046408,2262.3,2261.3,0.16638879]
[1770207754277,0.00462235,2262.2,2261.3,0.16638879]
[1770207761089,39.62360799,2262.4,2261.3,0.16638879]
[1770207761788,39.62360799,2262.4,2261.3,0.38781879]
[1770207762085,39.62360799,2262.4,2261.4,0.16612369]
[1770207763587,0.0054713,2262.3,2261.4,0.16612369]
[1770207764188,0.00553642,2262.2,2261.4,0.16612369]
[1770207765191,0.00561147,2262.0,2261.2,0.16577164]
[1770207766291,0.00561147,2261.8,2261.0,0.16577164]
[1770207767188,39.62960464,2261.7,2260.8,0.16557905]
[1770207767492,39.62960464,2261.9,2261.0,0.16557905]
[1770207767692,0.00599665,2261.8,2261.0,0.16557905]
[1770207767884,0.00599665,2261.8,2260.8,3.9020635]
[1770207768090,0.00599665,2261.6,2260.8,0.16557905]
[1770207768692,39.62360799,2261.6,2260.8,0.16557905]
[1770207769192,39.62911278,2261.7,2260.8,0.16557905]
[1770207770597,0.00509661,2261.6,2260.8,0.16557905]
[1770207770796,39.6287046,2261.5,2260.8,0.16557905]
[1770207770994,0.16737758,2260.9,2259.8,4.1236335]
[1770207771194,0.16737758,2260.9,2259.8,0.22157]
[1770207771396,0.16737758,2260.9,2259.9,0.00443469]
[1770207772099,0.16438707,2260.8,2259.9,0.00383597]
[1770207772398,0.16438707,2260.7,2259.9,0.00188232]
[1770207772995,0.16438707,2260.6,2259.9,0.00188232]
[1770207773392,0.15404436,2260.8,2259.9,0.16787393]
[1770207773698,0.15404436,2260.8,2260.1,0.16155692]
[1770207774089,0.15404436,2260.8,2260.1,0.16599161]
[1770207774289,0.15404436,2260.8,2259.9,0.16643775]
[1770207775507,0.15404436,2260.8,2259.9,0.17087244]
[1770207776507,0.00517298,2260.9,2260.1,0.16455543]
[1770207776903,0.00517298,2260.9,2260.1,0.16899012]
[1770207777907,0.00517298,2260.9,2260.2,0.15840388]
[1770207778710,0.00517298,2260.9,2260.2,0.15396919]
[1770207779004,0.00517298,2260.9,2260.5,0.15625875]
[1770207779209,0.00517298,2260.9,2260.5,0.15182406]
[1770207779511,0.00517298,2260.9,2260.6,0.00443469]
[1770207779810,0.15863578,2261.7,2260.8,0.15625875]
[1770207780011,0.15863578,2261.7,2260.5,0.15182406]
[1770207780608,0.1635739,2261.7,2260.7,0.15182406]
[1770207781812,0.1635739,2261.7,2260.5,0.15182406]
[1770207782111,0.15863578,2261.6,2260.5,0.15182406]
[1770207785112,0.1545609,2261.5,2260.5,0.15182406]
[1770207785613,0.1545609,2261.5,2260.5,0.15625875]
[1770207786015,3.855,2261.6,2260.7,0.15642698]
[1770207786224,4.01605282,2261.6,2260.7,0.15642698]
[1770207786415,0.16105282,2261.5,2260.7,0.15642698]
[1770207786615,0.16105282,2261.5,2260.1,0.15642698]
[1770207786812,0.16105282,2261.5,2260.4,0.15642698]
[1770207787715,0.16105282,2261.5,2260.4,0.16086167]
[1770207788216,0.16105282,2261.5,2260.4,0.15642698]
[1770207788418,0.16105282,2261.5,2260.6,0.15609886]
[1770207788817,0.16105282,2261.5,2260.6,0.16053355]
[1770207790518,0.16105282,2261.5,2260.7,0.00443469]
[1770207791918,0.16105282,2261.5,2260.7,0.17063935]
[1770207792119,0.16105282,2261.5,2260.8,0.00443469]
[1770207794212,0.22142,2261.4,2260.8,0.00443469]
[1770207794418,0.15877521,2261.3,2260.4,0.16620466]
[1770207794618,0.15877521,2261.3,2260.4,0.00443469]
[1770207794619,0.15877521,2261.2,2260.4,0.00443469]
[1770207794818,0.15877521,2261.2,2260.2,0.16620466]
[1770207794819,39.7823832,2261.2,2260.5,0.00443469]
[1770207795021,0.15877521,2261.1,2260.4,0.00443469]
[1770207795316,0.15877521,2261.1,2260.5,0.00443469]
[1770207795515,0.15877521,2261.1,2260.3,0.00443469]
[1770207795820,0.15877521,2260.9,2260.0,0.17063935]
[1770207796114,0.15877521,2260.9,2260.2,0.00443469]
[1770207796520,0.15877521,2260.9,2260.3,0.00443469]
[1770207796719,0.15877521,2260.9,2260.2,0.00443469]
[1770207797219,0.15877521,2260.9,2260.0,0.16620466]
[1770207797220,0.15877521,2260.9,2260.3,0.00443469]
[1770207797422,0.15877521,2260.9,2260.0,0.16620466]
[1770207797620,0.15877521,2260.9,2260.2,0.00443469]
[1770207798119,0.15877521,2260.9,2260.3,0.00443469]
[1770207798319,0.15877521,2260.9,2260.2,0.00443469]
[1770207798821,0.15877521,2260.9,2260.3,0.00443469]
[1770207799121,0.15877521,2260.9,2260.2,0.00443469]
[1770207799517,0.15877521,2260.9,2260.3,0.00443469]
[1770207799713,0.16849246,2260.8,2260.1,0.00443469]
[1770207800121,0.16849246,2260.8,2260.2,0.00443469]
[1770207800521,39.79210045,2260.8,2259.9,0.00188232]
[1770207800722,0.16130858,2260.7,2260.0,0.00443469]
[1770207800924,0.16130858,2260.7,2260.1,0.00443469]
[1770207801324,0.16130858,2260.7,2260.2,0.00443469]
[1770207801525,0.16130858,2260.7,2260.1,0.00443469]
[1770207801726,39.78491657,2261.0,2260.3,0.16644477]
[1770207802019,0.16130858,2260.9,2260.1,0.00443469]
[1770207802224,0.16130858,2260.9,2260.1,0.16644477]
[1770207802424,0.16130858,2260.9,2260.3,0.00443469]
[1770207802625,0.16130858,2260.9,2259.9,0.1638924]
[1770207802826,0.16130858,2260.9,2260.1,0.00443469]
[1770207803021,0.16130858,2260.9,2260.2,0.00443469]
[1770207803219,0.15998336,2260.8,2260.1,0.00443469]
[1770207803726,0.15998336,2260.8,2260.2,0.00443469]
[1770207803925,0.15998336,2260.8,2259.9,0.1638924]
[1770207803926,0.15998336,2260.8,2260.1,0.00443469]
[1770207804425,0.15998336,2260.8,2259.9,0.1638924]
[1770207804426,0.15998336,2260.8,2260.2,0.00443469]
[1770207804725,0.15998336,2260.8,2260.1,0.00443469]
[1770207804921,0.15998336,2260.8,2260.2,0.00443469]
[1770207805123,0.15998336,2260.8,2260.1,0.00443469]
[1770207805521,0.15998336,2260.8,2260.2,0.00443469]
[1770207805727,0.15998336,2260.8,2260.1,0.00443469]
[1770207806629,0.15998336,2260.8,2260.2,0.00443469]
[1770207806828,0.15998336,2260.8,2260.1,0.00443469]
[1770207807029,39.78359135,2260.8,2260.0,0.00443469]
[1770207807328,0.15998336,2260.7,2260.0,0.00443469]
[1770207807831,0.15998336,2260.7,2260.1,0.00443469]
[1770207808327,0.15998336,2260.7,2260.2,0.00443469]
[1770207808526,0.15998336,2260.7,2260.1,0.00443469]
[1770207809031,0.15998336,2260.7,2260.2,0.00443469]
[1770207809229,0.15998336,2260.7,2260.1,0.00443469]
[1770207809631,0.15998336,2260.7,2260.2,0.00443469]
[1770207809930,0.15998336,2260.7,2260.1,0.00443469]
[1770207810330,0.15998336,2260.7,2260.2,0.00443469]
[1770207810531,0.15998336,2260.7,2260.1,0.00443469]
[1770207811030,0.15998336,2260.7,2260.2,0.00443469]
[1770207811233,0.15998336,2260.7,2260.1,0.00443469]
[1770207811631,0.15998336,2260.7,2260.2,0.00443469]
[1770207811831,0.15998336,2260.7,2260.1,0.00443469]
[1770207812332,0.15998336,2260.7,2260.2,0.00443469]
[1770207812631,0.15998336,2260.7,2260.1,0.00443469]
[1770207813431,0.15998336,2260.7,2260.2,0.00443469]
[1770207813626,0.15998336,2260.7,2260.3,0.00443469]
[1770207814030,0.15998336,2260.7,2260.5,0.00443469]
[1770207814230,0.15998336,2260.7,2260.0,0.15258463]
[1770207814426,40.00508135,2260.7,2259.9,0.00188232]
[1770207814735,40.00373913,2260.6,2259.9,0.00188232]
[1770207814934,0.15863114,2260.4,2259.9,0.00188232]
[1770207815429,39.78223913,2260.3,2259.3,0.15258463]
[1770207815733,0.15863114,2260.1,2259.3,0.15258463]
[1770207816527,0.16198846,2260.1,2259.3,0.1557039]
[1770207817130,0.16198846,2260.1,2259.3,0.00311927]
[1770207818438,39.78559645,2260.1,2259.3,0.00311927]
[1770207818835,0.15863114,2260.0,2259.3,0.00311927]
[1770207820441,0.15863114,2260.0,2259.3,0.1557039]
[1770207820743,0.00335732,2260.1,2259.3,0.1557039]
[1770207821741,41.99623913,2260.6,2259.3,0.1557039]
[1770207822241,0.15863114,2260.5,2259.3,0.1557039]
[1770207822644,0.16189292,2260.5,2259.4,0.15258463]
[1770207825246,0.16189292,2260.5,2259.5,0.15258463]
[1770207827044,0.00326178,2260.5,2259.5,0.15258463]
[1770207827245,0.00326178,2260.5,2259.6,0.15258463]
[1770207829647,0.00326178,2260.5,2259.7,0.15258463]
[1770207831647,0.00326178,2260.5,2259.8,0.15258463]
[1770207833754,0.16189292,2260.5,2259.8,0.15258463]
[1770207834148,0.16189292,2260.5,2259.6,2.64468895]
[1770207834352,0.16189292,2260.5,2259.6,0.15258463]
[1770207834549,0.15863114,2260.4,2259.6,0.15258463]
[1770207844556,5.43621392,2260.3,2259.6,0.15258463]
[1770207844756,39.62360799,2260.2,2259.6,0.15258463]
[1770207845559,1.98456652,2260.0,2259.4,0.16093009]
[1770207846758,0.15429987,2260.0,2259.4,0.16093009]
[1770207847562,39.62360799,2260.2,2259.4,0.16093009]
[1770207847760,0.15429987,2260.3,2259.6,0.16093009]
[1770207850259,39.77790786,2260.3,2259.6,0.16093009]
[1770207852368,0.15429987,2260.3,2259.6,0.16093009]
[1770207852568,39.77790786,2260.3,2259.4,0.16093009]
[1770207852764,0.15429987,2260.2,2259.4,0.16093009]
[1770207852966,0.15429987,2259.7,2259.3,0.00311927]
[1770207853964,0.15429987,2259.5,2258.8,0.16093009]
[1770207854968,0.15429987,2259.5,2258.8,0.16602278]
[1770207855874,0.15429987,2259.5,2258.8,0.00509269]
[1770207856173,1.83026665,2259.6,2258.3,0.40627648]
[1770207856174,0.15429987,2258.8,2258.3,0.40627648]
[1770207856373,1.98456652,2258.5,2257.9,0.16093009]
[1770207856574,1.98456652,2258.5,2257.6,0.16093009]
[1770207856973,1.83026665,2258.1,2257.6,0.16093009]
[1770207857174,1.83026665,2257.9,2257.6,0.00530182]
[1770207857572,1.98456652,2257.7,2257.0,0.16093009]
[1770207857875,1.98456652,2257.5,2256.8,0.16093009]
[1770207858071,1.83026665,2257.3,2256.5,0.16093009]
[1770207858376,0.15429987,2257.3,2256.5,0.16093009]
[1770207858572,0.15429987,2257.3,2256.5,0.00499318]
[1770207858871,0.15429987,2256.9,2255.5,0.16093009]
[1770207859673,0.15429987,2256.5,2255.5,0.00384956]
[1770207859975,0.15844879,2256.5,2255.5,0.00384956]
[1770207860769,0.15429987,2256.1,2255.1,0.16093009]
[1770207860968,0.15429987,2255.9,2254.6,0.16093009]
[1770207861675,0.15429987,2255.7,2254.3,0.16093009]
[1770207861874,0.15429987,2255.7,2254.3,0.16650193]
[1770207862179,0.15429987,2255.6,2254.3,0.16650193]
[1770207862477,0.15429987,2255.5,2254.3,0.16650193]
[1770207863079,0.15429987,2255.5,2254.3,0.00557184]
[1770207863677,0.15429987,2255.5,2254.3,0.16650193]
[1770207864679,0.15429987,2255.5,2254.3,0.00557184]
[1770207865676,0.15429987,2254.9,2253.9,0.22196456]
[1770207865882,0.15429987,2254.7,2253.9,0.22196456]
[1770207866378,2.217,2254.8,2254.0,0.16093009]
[1770207866583,2.22222487,2254.8,2254.0,0.16570609]
[1770207867876,2.37652474,2254.8,2254.0,0.16570609]
[1770207868384,2.22222487,2254.8,2254.0,0.16570609]
[1770207869285,0.15970022,2254.7,2254.0,0.16960318]
[1770207870286,2.22222487,2254.8,2254.0,0.16960318]
[1770207873083,2.38192509,2254.8,2254.0,0.16960318]
[1770207873278,0.15970022,2254.7,2254.0,0.004776]
[1770207873484,0.15970022,2254.7,2254.0,0.16960318]
[1770207873884,0.15970022,2254.7,2254.0,0.004776]
[1770207874382,0.15970022,2254.5,2253.1,0.16482718]
[1770207875487,0.15970022,2254.5,2253.1,0.17010476]
[1770207876494,0.15970022,2254.5,2253.2,0.16482718]
[1770207876793,0.15970022,2254.5,2253.3,0.16482718]
[1770207876988,2.38192509,2254.8,2253.4,0.16482718]
[1770207877290,0.15970022,2254.7,2253.4,0.16482718]
[1770207877695,2.22222487,2254.8,2253.5,0.16482718]
[1770207878190,2.38192509,2254.8,2253.5,0.16482718]
[1770207878387,2.38192509,2254.8,2253.6,0.16482718]
[1770207878587,0.15970022,2254.7,2253.6,0.16482718]
[1770207878893,0.15970022,2255.8,2254.3,0.16482718]
[1770207879088,0.15970022,2255.7,2254.3,0.16482718]
[1770207879589,2.75539695,2255.5,2254.0,0.16482718]
[1770207879894,0.15970022,2255.4,2254.0,0.16482718]
[1770207880094,2.82335636,2255.5,2254.0,0.16482718]
[1770207880095,0.15970022,2255.2,2254.0,0.16482718]
[1770207880494,0.15970022,2255.1,2254.0,0.16482718]
[1770207881891,0.15970022,2254.9,2253.7,0.16482718]
[1770207882187,2.59569673,2254.7,2253.1,0.17010476]
[1770207882394,0.15970022,2254.4,2253.1,0.17010476]
[1770207882690,0.15970022,2254.2,2253.1,0.17010476]
[1770207883295,0.15970022,2254.5,2253.3,0.16482718]
[1770207883494,0.15970022,2254.8,2253.5,0.16482718]
[1770207883895,0.15970022,2254.8,2253.6,0.16482718]
[1770207884290,2.37870022,2255.1,2253.8,0.16482718]
[1770207884789,0.22201,2255.4,2253.8,0.16482718]
[1770207884996,0.00565963,2255.5,2254.5,0.16482718]
[1770207885395,0.15970022,2255.4,2254.0,0.16482718]
[1770207885791,0.15970022,2255.4,2254.1,0.16482718]
[1770207885991,0.15970022,2255.4,2254.2,0.16482718]
[1770207887595,0.00565963,2255.5,2254.5,0.16482718]
[1770207887895,0.00565963,2255.5,2254.6,0.16482718]
[1770207889193,0.16535985,2255.5,2254.6,0.16482718]
[1770207889996,0.16535985,2255.5,2254.2,2.80951613]
[1770207890198,0.16535985,2255.5,2254.2,0.16482718]
[1770207891089,0.16535985,2255.5,2254.4,0.16482718]
[1770207892091,0.16535985,2255.5,2254.2,2.64468895]
[1770207892290,0.15970022,2255.3,2254.0,0.16482718]
[1770207895100,0.15970022,2255.2,2254.0,0.16482718]
[1770207898804,39.26984521,2255.2,2254.0,0.16482718]
[1770207899101,0.15970022,2255.2,2254.0,0.16482718]
[1770207900102,0.15970022,2255.2,2254.1,0.15242045]
[1770207900407,2.38296072,2255.5,2254.3,0.15242045]
[1770207900706,2.38296072,2255.5,2254.4,0.15242045]
[1770207901808,0.15830109,2255.4,2254.4,0.15242045]
[1770207902506,2.22465963,2255.5,2254.4,0.15242045]
[1770207902708,2.38296072,2255.5,2254.4,0.15242045]
[1770207902901,0.15830109,2255.4,2254.4,0.15242045]
[1770207909514,0.15830109,2255.4,2254.2,2.64468895]
[1770207909816,0.15830109,2255.4,2254.3,0.15242045]
[1770207911020,0.15830109,2255.4,2254.4,0.15242045]
[1770207912416,0.15830109,2255.3,2254.4,0.15242045]
[1770207913313,39.26844608,2255.3,2254.4,0.15242045]
[1770207914820,0.15830109,2255.2,2254.4,0.15242045]
[1770207916317,39.11014499,2255.3,2254.5,0.15242045]
[1770207916522,39.26844608,2255.4,2254.5,0.15242045]
[1770207916819,39.26844608,2255.3,2254.5,0.15242045]
[1770207917315,0.15830109,2255.2,2254.4,2.64468895]
[1770207917521,0.15830109,2255.2,2254.3,3.0192194]
[1770207917716,0.15830109,2255.1,2254.3,2.64468895]
[1770207917922,0.15830109,2254.6,2253.8,0.15242045]
[1770207918121,0.15830109,2254.5,2253.8,0.15242045]
[1770207918513,0.15830109,2254.5,2253.6,2.64468895]
[1770207918716,39.11014499,2254.5,2253.6,0.15242045]
[1770207918915,5.44021514,2254.6,2253.7,0.15242045]
[1770207918916,39.11014499,2254.6,2253.7,0.15242045]
[1770207919122,39.26844608,2254.5,2253.7,0.15242045]
[1770207919323,0.15830109,2254.5,2253.7,0.15242045]
[1770207919525,39.11014499,2254.6,2253.7,0.15242045]
[1770207919925,39.26844608,2254.8,2253.8,2.7971094]
[1770207920225,39.26844608,2254.8,2253.9,0.15242045]
[1770207923431,0.15830109,2254.7,2253.9,0.15242045]
[1770207924524,0.15830109,2254.7,2253.7,0.15242045]
[1770207924728,0.15830109,2254.3,2253.4,0.15242045]
[1770207925229,0.15830109,2254.2,2253.4,0.15242045]
[1770207925631,0.15830109,2254.1,2253.1,3.02461698]
[1770207925827,0.15830109,2254.1,2253.1,0.37992803]
[1770207926229,0.15830109,2254.1,2253.2,0.15242045]
[1770207926533,2.65203612,2254.3,2253.3,0.15242045]
[1770207927734,4.87103612,2254.6,2253.6,0.15242045]
[1770207928435,4.87103612,2254.6,2253.7,0.15242045]
[1770207929035,2.219,2254.6,2253.8,0.1661603]
[1770207929537,2.65203612,2254.8,2253.8,0.1661603]
[1770207930236,2.65203612,2254.8,2254.0,0.1661603]
[1770207930539,2.65203612,2255.1,2254.1,0.1661603]
[1770207930837,2.65203612,2255.2,2254.2,0.1661603]
[1770207931431,2.80924861,2255.2,2254.2,0.1661603]
[1770207932033,2.65203612,2255.2,2254.2,0.1661603]
[1770207932541,2.64799022,2255.2,2254.2,0.1661603]
[1770207933942,0.15808238,2255.1,2254.2,0.1661603]
[1770207934138,0.15808238,2255.0,2254.0,0.1661603]
[1770207934343,2.8060726,2255.0,2254.0,0.1661603]
[1770207935544,0.15808238,2254.9,2254.0,0.1661603]
[1770207937948,2.64799022,2255.1,2254.1,0.1661603]
[1770207940745,2.8060726,2255.1,2254.1,0.1661603]
[1770207941049,2.80760094,2255.1,2254.1,0.1661603]
[1770207941351,2.64951856,2255.1,2254.2,0.1661603]
[1770207941550,2.64951856,2255.2,2254.2,0.1661603]
[1770207941846,2.64951856,2255.2,2254.4,0.1661603]
[1770207942048,0.15808238,2255.0,2254.3,0.8473]
[1770207942248,0.15808238,2254.9,2254.3,0.8473]
[1770207942552,0.15808238,2254.8,2254.3,0.8473]
[1770207944247,2.80760094,2254.8,2254.3,0.68372757]
[1770207944549,0.00213228,2254.6,2254.3,0.68159529]
[1770207947151,0.00522134,2254.4,2253.6,0.16622931]
[1770207947344,0.00522134,2254.3,2253.6,0.16622931]
[1770207947749,0.00522134,2254.2,2253.3,0.16622931]
[1770207947951,2.6547399,2254.0,2253.1,0.17150689]
[1770207948253,2.64951856,2253.9,2253.1,0.17150689]
[1770207948453,0.00342213,2253.9,2253.1,0.17150689]
[1770207955056,0.00525044,2253.9,2253.1,0.17150689]
[1770207955356,0.00525044,2253.9,2253.1,0.00527758]
[1770207955357,0.00182831,2253.7,2253.1,0.00527758]
[1770207955557,2.87174856,2253.2,2252.3,0.44398073]
[1770207955753,2.64951856,2252.9,2252.3,0.44398073]
[1770207956355,2.64951856,2253.0,2252.3,0.44398073]
[1770207956553,0.00671696,2252.9,2252.3,0.44872584]
[1770207956749,0.00671696,2252.9,2252.3,0.44200888]
[1770207957152,2.64951856,2252.5,2251.3,0.16883998]
[1770207957360,2.64951856,2252.7,2251.3,0.16883998]
[1770207958253,2.64951856,2252.8,2251.3,0.17296609]
[1770207958455,0.00164879,2252.7,2251.3,0.17296609]
[1770207958659,0.00164879,2252.6,2251.3,0.17296609]
[1770207959354,0.00164879,2252.5,2251.3,0.17296609]
[1770207959759,0.22229,2252.6,2251.3,0.17296609]
[1770207959760,0.22393879,2252.6,2251.3,0.17296609]
[1770207960159,0.00164879,2252.5,2251.3,0.17296609]
[1770207960859,0.00130378,2252.8,2251.3,0.17296609]
[1770207961055,0.16619029,2252.5,2250.8,2.73015147]
[1770207961361,0.16619029,2251.8,2250.3,0.22251]
[1770207961560,0.16619029,2251.4,2249.9,1.17157936]
[1770207962161,0.1703156,2251.4,2249.9,1.17479112]
[1770207962759,0.1703156,2251.4,2249.9,4.00430099]
[1770207962956,0.00412531,2251.4,2250.1,0.22252]
[1770207963152,0.16619029,2251.3,2250.2,0.15427208]
[1770207963552,0.00412531,2251.4,2250.2,0.15427208]
[1770207964154,0.1703156,2251.4,2250.2,0.15427208]
[1770207964854,0.16619029,2251.3,2250.2,0.15427208]
[1770207965262,0.16619029,2251.2,2250.2,0.15427208]
[1770207965658,0.22241,2251.3,2250.2,0.15427208]
[1770207965862,0.38860029,2251.3,2250.2,0.15427208]
[1770207966364,0.16619029,2251.2,2250.2,0.15427208]
[1770207967862,0.16619029,2251.2,2249.9,0.15748384]
[1770207968165,0.00412531,2251.4,2250.1,0.37680208]
[1770207968364,0.00412531,2251.4,2250.2,0.15427208]
[1770207969064,2.60696987,2252.1,2250.4,0.15427208]
[1770207969065,0.38852029,2252.1,2250.4,0.15427208]
[1770207969258,0.38852029,2252.1,2250.6,0.15427208]
[1770207969664,0.21019029,2252.0,2250.6,0.15427208]
[1770207970163,0.21358676,2252.0,2250.6,0.15427208]
[1770207971062,0.16619029,2251.9,2250.6,0.15427208]
[1770207971766,0.26973647,2252.0,2250.6,0.15427208]
[1770207972064,0.16619029,2251.9,2250.6,0.15427208]
[1770207973165,0.16619029,2251.7,2250.6,0.15427208]
[1770207973761,0.16619029,2251.4,2250.2,0.15427208]
[1770207974869,2.60696987,2251.7,2249.9,0.15748384]
[1770207974870,0.16619029,2251.3,2249.9,0.15748384]
[1770207975267,0.38862029,2251.1,2249.9,0.15748384]
[1770207976168,0.16619029,2251.0,2249.9,0.15748384]
[1770207977461,0.26643,2251.1,2249.9,0.15748384]
[1770207978063,0.43262029,2251.1,2249.9,0.15748384]
[1770207979367,0.16619029,2251.0,2249.9,0.15748384]
[1770207979563,0.044,2251.1,2249.9,0.15748384]
[1770207981767,0.21019029,2251.1,2249.9,0.15748384]
[1770207982264,0.16619029,2250.8,2249.9,0.00321176]
[1770207982969,0.16619029,2250.8,2249.9,0.15748384]
[1770207983465,0.16561676,2250.5,2249.9,0.00321176]
[1770207983662,0.16561676,2250.5,2249.6,0.15427208]
[1770207984271,0.16561676,2250.4,2249.3,0.15427208]
[1770207984468,0.16561676,2250.3,2249.3,0.15427208]
[1770207984666,0.16561676,2250.3,2249.3,0.15961327]
[1770207985070,0.00464001,2250.4,2249.3,0.15961327]
[1770207985272,0.1708303,2250.4,2249.3,0.15961327]
[1770207986073,5.25648843,2249.5,2248.1,35.86305197]
[1770207986271,39.11014499,2249.6,2248.1,35.86305197]
[1770207986272,2.64951856,2249.4,2248.2,0.16898704]
[1770207986475,2.64951856,2249.9,2248.8,0.1705301]
[1770207986773,2.64951856,2249.4,2248.8,0.1705301]
[1770207986973,1.66992982,2249.3,2248.9,0.1705301]
[1770207987168,2.64951856,2249.7,2248.9,4.61693011]
[1770207987370,39.11014499,2249.1,2247.8,0.1705301]
[1770207987574,2.63020745,2248.9,2248.0,30.95344036]
[1770207988176,2.63020745,2248.6,2247.3,0.1705301]
[1770207988376,5.23717732,2248.5,2247.4,30.95344036]
[1770207988576,2.63020745,2248.4,2247.4,30.95344036]
[1770207988776,2.63476482,2248.6,2247.5,0.16962254]
[1770207989078,0.00455737,2248.6,2247.6,0.16962254]
[1770207989278,0.00455737,2248.6,2247.8,0.16962254]
[1770207989580,0.00455737,2248.6,2247.9,0.16962254]
[1770207989780,0.00455737,2248.6,2247.9,35.56946291]
[1770207989975,0.00455737,2248.6,2248.0,4.44640001]
[1770207990176,0.00455737,2248.6,2247.9,30.95344036]
[1770207990371,0.00455737,2248.6,2247.9,35.56946291]
[1770207990577,0.00455737,2248.6,2248.0,0.17003886]
[1770207990778,0.00455737,2248.6,2248.0,4.61643887]
[1770207991077,0.00455737,2248.6,2248.2,0.17003886]
[1770207991681,2.66411641,2249.1,2248.3,35.56987923]
[1770207991881,2.66411641,2249.1,2247.7,0.17003886]
[1770207992178,2.66411641,2249.1,2247.9,0.17003886]
[1770207992378,0.044,2249.1,2247.9,0.17003886]
[1770207992575,0.00465189,2249.0,2247.9,0.17003886]
[1770207993975,0.00465189,2249.0,2248.0,30.95344036]
[1770207994380,0.00465189,2249.0,2248.0,31.12071351]
[1770207995385,0.04961379,2249.1,2248.1,0.16768836]
[1770207995981,0.04961379,2249.1,2248.2,30.95344036]
[1770207996584,0.05213381,2249.1,2248.2,30.95344036]
[1770207997279,2.66593007,2249.1,2248.2,31.12140174]
[1770207997582,0.04961379,2249.1,2248.3,4.61436139]
[1770207998185,2.61379626,2249.8,2248.8,0.16796138]
[1770207998384,2.62193007,2249.8,2248.8,0.16796138]
[1770207998579,2.62876384,2249.8,2248.9,30.95344036]
[1770207998777,2.62876384,2249.8,2248.9,0.16727315]
[1770207998977,3.82774579,2249.7,2249.0,30.95344036]
[1770207999188,0.00545082,2249.7,2249.0,30.95865917]
[1770207999381,3.82938776,2249.6,2249.0,30.95865917]
[1770207999578,0.01496758,2249.4,2248.0,0.044]
[1770207999885,0.01496758,2249.2,2248.3,0.16727315]
[1770208000076,3.82861983,2249.1,2248.3,0.16727315]
[1770208000275,0.01496758,2249.2,2248.3,0.16727315]
[1770208000480,0.01704675,2249.1,2248.4,11.66840435]
[1770208000784,0.01704675,2249.0,2248.4,11.67253092]
[1770208000979,0.01704675,2248.8,2248.4,0.00412657]
[1770208001178,0.01704675,2248.8,2247.9,0.16727315]
[1770208001385,0.22266,2248.8,2248.0,16.11480436]
[1770208001584,3.84805021,2248.7,2248.0,16.11480436]
[1770208001778,0.01704675,2248.7,2248.0,16.11480436]
[1770208001981,0.01704675,2248.7,2248.1,4.44640001]
[1770208002379,0.01704675,2248.7,2248.2,11.66840435]
[1770208002586,3.832767,2248.6,2248.2,11.66840435]
[1770208002782,0.01704675,2248.7,2248.2,11.66840435]
[1770208002983,3.83277368,2248.6,2248.2,11.66840435]
[1770208003286,0.01704675,2248.7,2248.0,0.00316742]
[1770208003586,2.62642336,2248.6,2248.1,11.66840435]
[1770208003786,3.8345878,2248.5,2248.1,11.66840435]
[1770208003984,3.8345878,2248.4,2248.1,11.66840435]
[1770208004191,2.61379626,2248.6,2248.2,0.16727315]
[1770208004388,2.61379626,2248.6,2248.1,16.11480436]
[1770208004593,2.62642336,2248.6,2248.0,0.00316742]
[1770208004790,0.01145217,2248.4,2248.0,0.00316742]
[1770208005093,3.83379619,2248.3,2247.5,0.16727315]
[1770208005291,0.01145217,2248.4,2247.6,12.60688539]
[1770208005494,0.01145217,2248.2,2247.6,12.60688539]
[1770208005787,0.01145217,2248.0,2247.2,0.16727315]
[1770208005993,3.83444232,2247.9,2247.3,8.16048538]
[1770208006189,0.01676779,2248.0,2247.3,8.16048538]
[1770208006488,0.01676779,2248.0,2247.2,4.61892659]
[1770208006489,0.01038431,2247.9,2247.2,0.00525343]
[1770208006695,0.01038431,2247.7,2246.9,0.16727315]
[1770208006894,2.83654626,2247.9,2247.1,4.61367316]
[1770208007090,3.83486556,2247.8,2247.1,0.16727315]
[1770208007295,0.00513088,2247.6,2246.8,0.16727315]
[1770208007594,2.83655626,2247.8,2246.9,8.16048538]
[1770208007789,0.00513088,2247.6,2246.9,8.16447654]
[1770208008092,0.00513088,2247.6,2246.3,0.4451666]
[1770208008093,0.22285,2246.9,2246.3,6.6e-06]
[1770208008288,2.61957986,2246.6,2246.3,7.6931345]
[1770208008494,2.61957986,2246.9,2246.4,4.44640001]
[1770208008688,3.87920175,2246.8,2246.3,7.6931345]
[1770208008895,3.87920175,2246.7,2246.3,7.6931345]
[1770208009095,2.61957986,2246.9,2246.3,7.69750173]
[1770208009395,3.88082081,2246.8,2246.3,7.69750173]
[1770208009591,3.87994264,2246.7,2246.3,0.00436723]
[1770208009796,3.87994264,2246.7,2246.3,0.00209926]
[1770208009797,3.87994264,2246.6,2246.3,0.00209926]
[1770208009998,2.61957986,2247.2,2246.6,4.6156214]
[1770208010197,2.61957986,2247.2,2246.3,0.00209926]
[1770208010198,2.61957986,2247.4,2246.4,7.6931345]
[1770208010399,43.64238986,2247.3,2246.4,7.6931345]
[1770208010696,2.61957986,2247.1,2246.4,7.6931345]
[1770208010896,3.88053623,2247.0,2246.4,7.6931345]
[1770208011090,3.88053623,2246.9,2246.5,7.6931345]
[1770208011289,2.61957986,2247.1,2246.5,7.6931345]
[1770208011490,3.88030387,2247.0,2246.5,7.6931345]
[1770208011697,2.84239986,2247.2,2246.6,4.44640001]
[1770208011898,3.88035154,2247.1,2246.6,4.44640001]